bitfinex/quotes_SOLUSD_20241213
["timestamp","ask_amount","ask_price","bid_price","bid_amount"]
[1734098881204,13.21755373,223.47,223.45,481.94616286]
[1734098881411,13.21755373,223.48,223.45,481.94616286]
[1734098882618,13.21755373,223.49,223.45,481.94616286]
[1734098883806,13.21755373,223.51,223.45,481.94616286]
[1734098885819,11.1819,223.58,223.5,13.21755373]
[1734098885820,13.21755373,223.58,223.5,13.21755373]
[1734098886123,13.21755373,223.57,223.5,13.21755373]
[1734098886930,13.21755373,223.53,223.48,20.0]
[1734098887131,13.21755373,223.54,223.48,20.0]
[1734098887329,13.21755373,223.53,223.46,13.21755373]
[1734098887531,13.21755373,223.55,223.47,13.21755373]
[1734098888232,13.21755373,223.54,223.47,13.21755373]
[1734098888521,13.21755373,223.51,223.45,481.94616286]
[1734098888723,13.21755373,223.48,223.45,481.94616286]
[1734098889306,21.15961797,223.47,223.45,481.94616286]
[1734098889620,21.15961797,223.52,223.45,503.10578083]
[1734098892433,21.15961797,223.53,223.46,21.15961797]
[1734098893909,21.15961797,223.54,223.47,21.15961797]
[1734098894522,20.0,223.55,223.48,21.15961797]
[1734098894731,21.15961797,223.56,223.49,21.15961797]
[1734098895247,21.15961797,223.57,223.5,21.15961797]
[1734098895827,21.15961797,223.56,223.49,21.15961797]
[1734098896030,21.15961797,223.57,223.5,21.15961797]
[1734098896330,21.15961797,223.6,223.53,21.15961797]
[1734098896552,21.15961797,223.6,223.47,6.0707]
[1734098896553,21.15961797,223.63,223.55,21.15961797]
[1734098896712,21.15961797,223.64,223.57,21.15961797]
[1734098897524,21.15961797,223.63,223.56,21.15961797]
[1734098897728,21.15961797,223.61,223.54,22.79941797]
[1734098898230,21.15961797,223.62,223.54,22.79941797]
[1734098898723,21.15961797,223.59,223.54,1.6398]
[1734098898812,21.15961797,223.58,223.54,1.6398]
[1734098899013,21.15961797,223.56,223.54,1.6398]
[1734098899331,21.15961797,223.55,223.49,1.6195]
[1734098899535,21.15961797,223.54,223.49,1.6195]
[1734098899724,21.15961797,223.53,223.49,1.6195]
[1734098900245,21.15961797,223.51,223.49,1.6195]
[1734098900717,21.15961797,223.5,223.44,1.6195]
[1734098900921,21.15961797,223.47,223.44,1.6195]
[1734098901123,21.15961797,223.46,223.44,1.6195]
[1734098901424,21.15961797,223.46,223.38,1.5712]
[1734098901944,20.0,223.48,223.38,1.5712]
[1734098902136,21.15961797,223.46,223.38,1.5712]
[1734098902527,45.18748197,223.46,223.38,1.5712]
[1734098906734,15.0,223.49,223.38,1.5712]
[1734098906735,21.15961797,223.49,223.41,21.15961797]
[1734098906932,22.3612,223.61,223.44,21.15961797]
[1734098906933,21.15961797,223.51,223.44,21.15961797]
[1734098907329,21.15961797,223.5,223.43,21.15961797]
[1734098908043,21.15961797,223.49,223.42,21.15961797]
[1734098908937,21.15961797,223.52,223.45,503.10578083]
[1734098909529,21.15961797,223.46,223.45,481.94616286]
[1734098909733,21.15961797,223.48,223.45,481.94616286]
[1734098910038,21.15961797,223.47,223.45,481.94616286]
[1734098910673,21.15961797,223.46,223.45,481.94616286]
[1734098912944,21.28510797,223.46,223.45,481.94616286]
[1734098913248,21.15961797,223.46,223.45,481.94616286]
[1734098913434,21.15961797,223.48,223.45,481.94616286]
[1734098914145,21.15961797,223.51,223.45,481.94616286]
[1734098914361,21.15961797,223.52,223.45,503.10578083]
[1734098914950,21.15961797,223.51,223.45,481.94616286]
[1734098915926,21.15961797,223.48,223.45,481.94616286]
[1734098916142,21.15961797,223.47,223.45,481.94616286]
[1734098916355,21.15961797,223.46,223.45,481.94616286]
[1734098917152,45.18748197,223.46,223.45,481.94616286]
[1734098917358,60.18748008,223.46,223.45,481.94616286]
[1734098917949,71.37508008,223.46,223.45,481.94616286]
[1734098919960,56.37508197,223.46,223.45,481.94616286]
[1734098920144,21.15961797,223.46,223.45,481.94616286]
[1734098920696,21.28510797,223.46,223.45,481.94616286]
[1734098921455,21.41059797,223.46,223.45,481.94616286]
[1734098922445,45.18748197,223.46,223.45,481.94616286]
[1734098922645,60.18748008,223.46,223.45,481.94616286]
[1734098925256,75.18748008,223.46,223.45,359.11830072]
[1734098925461,75.18748008,223.46,223.45,352.90960072]
[1734098925641,75.18748008,223.46,223.45,346.14890072]
[1734098925843,75.18748008,223.46,223.45,334.64420072]
[1734098926247,75.18748008,223.46,223.45,330.68360072]
[1734098926444,75.18748008,223.46,223.45,319.75890072]
[1734098926653,75.18748008,223.46,223.45,313.66630072]
[1734098926862,75.18748008,223.46,223.45,306.19270072]
[1734098927055,75.18748008,223.46,223.45,303.05630072]
[1734098927555,102.57380301,223.46,223.45,288.50990072]
[1734098927695,102.57380301,223.46,223.45,268.48880072]
[1734098927878,102.57380301,223.46,223.45,244.20066868]
[1734098928067,102.57380301,223.46,223.45,100.93680654]
[1734098928454,102.57380301,223.46,223.45,89.57760654]
[1734098928662,102.57380301,223.46,223.45,66.85920654]
[1734098928849,102.57380301,223.46,223.45,55.50000654]
[1734098929166,81.41418504,223.46,223.45,46.12020654]
[1734098929870,57.38632293,223.46,223.45,46.12020654]
[1734098930380,72.51181104,223.46,223.45,46.12020654]
[1734098930759,42.51181104,223.46,223.45,46.12020654]
[1734098931181,66.41418504,223.46,223.45,46.12020654]
[1734098931355,51.41418693,223.46,223.45,46.12020654]
[1734098932054,66.41418504,223.46,223.45,46.12020654]
[1734098935251,58.48557648,223.46,223.45,46.12020654]
[1734098936466,43.48557837,223.46,223.45,46.12020654]
[1734098936680,30.25456896,223.46,223.45,46.12020654]
[1734098938345,0.12549,223.46,223.45,46.12020654]
[1734098938563,24.41660941,223.5,223.45,46.12020654]
[1734098938770,13.35649941,223.46,223.45,46.12020654]
[1734098939762,37.25887341,223.46,223.45,46.12020654]
[1734098941154,37.25887341,223.46,223.45,43.31920654]
[1734098941155,43.48557837,223.46,223.45,43.31920654]
[1734098941462,58.48557837,223.46,223.45,24.51440654]
[1734098941663,43.48557837,223.46,223.45,24.51440654]
[1734098942054,43.48557837,223.46,223.45,21.99820654]
[1734098942272,43.48557837,223.46,223.45,19.48200654]
[1734098942655,43.48557837,223.46,223.45,15.87300654]
[1734098942862,43.48557837,223.46,223.45,12.23510654]
[1734098943066,71.92557837,223.46,223.45,6.54e-06]
[1734098944066,58.48557837,223.46,223.45,6.54e-06]
[1734098944380,43.48557837,223.46,223.45,6.54e-06]
[1734098947070,88.48557837,223.46,223.45,6.54e-06]
[1734098947471,0.12549,223.37,223.33,1.5767]
[1734098947679,13.23100941,223.35,223.33,1.5767]
[1734098947873,37.25887341,223.34,223.33,1.5767]
[1734098948269,0.12549,223.33,223.27,1.5407]
[1734098948599,13.23100941,223.29,223.27,1.5407]
[1734098949565,13.23100941,223.28,223.27,1.5407]
[1734098950190,13.35649941,223.28,223.27,1.5407]
[1734098950360,0.25098,223.3,223.27,1.5407]
[1734098950361,13.23100941,223.29,223.27,1.5407]
[1734098950560,20.0,223.28,223.27,1.5407]
[1734098951069,13.23100941,223.31,223.27,1.5407]
[1734098952151,13.23100941,223.32,223.27,1.5407]
[1734098952287,23.776884,223.34,223.27,1.5407]
[1734098952288,37.00789341,223.34,223.27,14.77170941]
[1734098952592,20.0,223.31,223.27,14.77170941]
[1734098953001,20.0,223.31,223.28,13.23100941]
[1734098953298,19.45771437,223.38,223.3,13.23100941]
[1734098953524,6.22670496,223.38,223.35,13.23100941]
[1734098953716,13.23100941,223.42,223.35,13.23100941]
[1734098953903,0.12549,223.41,223.36,13.23100941]
[1734098954106,13.23100941,223.42,223.36,13.23100941]
[1734098954907,0.12549,223.41,223.35,13.23100941]
[1734098955167,13.23100941,223.4,223.33,13.23100941]
[1734098955336,0.12549,223.41,223.31,13.23100941]
[1734098955337,13.23100941,223.37,223.31,13.23100941]
[1734098955599,13.35649941,223.38,223.31,13.23100941]
[1734098955795,0.12549,223.38,223.32,13.23100941]
[1734098956004,13.23100941,223.39,223.32,13.23100941]
[1734098956164,11.188,223.46,223.38,13.23100941]
[1734098956388,0.12549,223.45,223.4,13.23100941]
[1734098956591,13.35649941,223.45,223.38,13.23100941]
[1734098956770,13.23100941,223.45,223.38,13.23100941]
[1734098957287,23.902374,223.44,223.38,21.16584994]
[1734098957588,23.902374,223.44,223.39,21.16584994]
[1734098957783,0.12549,223.44,223.39,21.16584994]
[1734098960089,0.12549,223.45,223.4,21.16584994]
[1734098960295,20.0,223.45,223.42,21.16584994]
[1734098960995,20.0,223.46,223.4,21.16584994]
[1734098961536,41.16584994,223.46,223.39,21.16584994]
[1734098962577,0.12549,223.45,223.39,21.16584994]
[1734098962774,21.16584994,223.44,223.37,27.28674994]
[1734098962977,21.16584994,223.43,223.37,6.1209]
[1734098963201,21.16584994,223.41,223.37,6.1209]
[1734098964491,21.16584994,223.42,223.37,6.1209]
[1734098966397,21.16584994,223.41,223.36,2.3972]
[1734098966774,21.16584994,223.4,223.36,2.3972]
[1734098966977,21.16584994,223.37,223.32,6.3888]
[1734098967278,21.16584994,223.35,223.32,6.3888]
[1734098967474,21.16584994,223.36,223.32,6.3888]
[1734098968402,3.43768978,223.41,223.35,21.16584994]
[1734098968718,3.43768978,223.41,223.32,6.3888]
[1734098968719,21.16584994,223.47,223.4,21.16584994]
[1734098968886,21.16584994,223.47,223.33,0.67155421]
[1734098968887,21.16584994,223.48,223.41,21.16584994]
[1734098969091,2.78901518,223.5,223.42,21.16584994]
[1734098969286,2.78901518,223.5,223.41,2.1925]
[1734098969521,21.16584994,223.46,223.41,2.1925]
[1734098972311,21.29133994,223.45,223.41,2.1925]
[1734098972514,21.16584994,223.42,223.36,2.2525]
[1734098972686,21.16584994,223.38,223.36,2.2525]
[1734098973493,21.16584994,223.41,223.36,2.2525]
[1734098973703,21.16584994,223.43,223.36,23.41834994]
[1734098975007,21.16584994,223.46,223.39,21.16584994]
[1734098975192,21.16584994,223.48,223.41,21.16584994]
[1734098975621,21.16584994,223.49,223.42,21.16584994]
[1734098976699,21.16584994,223.48,223.41,21.16584994]
[1734098976904,21.29133994,223.47,223.4,21.16584994]
[1734098977112,21.16584994,223.46,223.39,21.16584994]
[1734098977447,13.22715216,223.45,223.38,13.22715216]
[1734098977594,11.92224477,223.52,223.42,13.22715216]
[1734098977791,13.22715216,223.49,223.42,13.22715216]
[1734098978010,13.22715216,223.5,223.43,13.22715216]
[1734098978209,13.22715216,223.51,223.44,13.22715216]
[1734098978393,13.22715216,223.5,223.43,13.22715216]
[1734098978797,13.22715216,223.49,223.42,13.22715216]
[1734098980488,13.22715216,223.5,223.42,13.22715216]
[1734098980600,13.22715216,223.5,223.43,13.22715216]
[1734098980804,13.22715216,223.52,223.45,13.22715216]
[1734098980995,13.22715216,223.53,223.46,15.54805216]
[1734098981197,13.22715216,223.54,223.47,13.22715216]
[1734098982223,13.22715216,223.53,223.46,15.54805216]
[1734098982524,13.22715216,223.52,223.46,2.3209]
[1734098984722,13.22715216,223.55,223.48,13.22715216]
[1734098984899,13.22715216,223.58,223.5,13.22715216]
[1734098985099,13.22715216,223.59,223.52,13.22715216]
[1734098985304,13.22715216,223.61,223.53,13.22715216]
[1734098985517,13.22715216,223.61,223.46,2.99203123]
[1734098985518,13.22715216,223.61,223.54,13.22715216]
[1734098986101,11.1785,223.65,223.53,6.062]
[1734098986102,13.22715216,223.63,223.56,13.22715216]
[1734098986302,13.22715216,223.62,223.56,2.3903]
[1734098986894,13.22715216,223.65,223.58,13.22715216]
[1734098987083,13.22715216,223.66,223.59,13.22715216]
[1734098987524,0.5345105,223.72,223.6,13.22715216]
[1734098987525,13.22715216,223.67,223.6,13.22715216]
[1734098988225,13.22715216,223.7,223.63,13.22715216]
[1734098988815,13.22715216,223.69,223.62,13.22715216]
[1734098990441,24.3113945,223.72,223.58,15.0]
[1734098990729,13.22715216,223.69,223.62,13.22715216]
[1734098991121,13.22715216,223.67,223.6,13.22715216]
[1734098992007,13.22715216,223.64,223.56,15.61745216]
[1734098992203,13.22715216,223.63,223.56,2.3903]
[1734098992422,13.22715216,223.6,223.56,2.3903]
[1734098992622,13.22715216,223.57,223.53,6.062]
[1734098992922,20.0,223.61,223.51,2.3231]
[1734098993134,13.22715216,223.57,223.51,2.3231]
[1734098993312,13.22715216,223.58,223.51,15.55025216]
[1734098994421,13.22715216,223.58,223.52,13.22715216]
[1734098994810,20.0,223.61,223.55,13.22715216]
[1734098997217,20.0,223.61,223.55,21.13293856]
[1734098998434,41.13293856,223.61,223.54,21.13293856]
[1734098999430,21.13293856,223.58,223.52,21.13293856]
[1734099001214,21.13293856,223.62,223.56,21.13293856]
[1734099001412,21.13293856,223.64,223.58,21.13293856]
[1734099001748,11.1771,223.68,223.61,21.13293856]
[1734099001749,21.13293856,223.68,223.61,21.13293856]
[1734099002323,24.34833638,223.72,223.63,21.13293856]
[1734099002324,21.13293856,223.7,223.63,21.13293856]
[1734099002535,6.76123638,223.72,223.62,2.2953]
[1734099002536,0.5345105,223.72,223.66,21.13293856]
[1734099003911,21.66744906,223.72,223.65,21.13293856]
[1734099004141,21.13293856,223.71,223.64,21.13293856]
[1734099004525,0.5345105,223.72,223.66,21.13293856]
[1734099005110,0.5345105,223.72,223.68,21.13293856]
[1734099005312,0.5345105,223.72,223.64,0.67052778]
[1734099005521,0.5345105,223.72,223.69,21.13293856]
[1734099005914,0.5345105,223.72,223.64,0.67052778]
[1734099005915,0.5345105,223.72,223.71,21.13293856]
[1734099006936,0.5345105,223.72,223.68,21.13293856]
[1734099007723,21.13293856,223.71,223.64,21.13293856]
[1734099008744,21.13293856,223.67,223.62,2.2953]
[1734099008946,21.13293856,223.65,223.59,6.6196]
[1734099009257,21.13293856,223.65,223.59,27.75253856]
[1734099010145,21.13293856,223.69,223.62,21.13293856]
[1734099010340,21.13293856,223.69,223.59,7.29040762]
[1734099010341,21.13293856,223.71,223.64,21.13293856]
[1734099010557,21.13293856,223.71,223.59,7.29040762]
[1734099010558,21.66744906,223.72,223.65,21.13293856]
[1734099011143,21.13293856,223.66,223.6,21.13293856]
[1734099011318,21.13293856,223.67,223.6,21.13293856]
[1734099013231,21.13293856,223.68,223.61,21.13293856]
[1734099016125,20.0,223.7,223.59,6.6196]
[1734099016126,20.0,223.7,223.64,21.13293856]
[1734099016324,21.66744906,223.72,223.65,21.13293856]
[1734099018533,21.13293856,223.71,223.64,21.13293856]
[1734099018939,21.66744906,223.72,223.65,21.13293856]
[1734099019140,13.73020391,223.72,223.65,13.19569341]
[1734099019452,0.5345105,223.72,223.66,13.19569341]
[1734099019769,0.5345105,223.72,223.61,0.12549]
[1734099019770,0.5345105,223.72,223.69,13.19569341]
[1734099020061,0.5345105,223.72,223.71,13.19569341]
[1734099020448,0.5345105,223.72,223.7,13.19569341]
[1734099020844,0.5345105,223.72,223.69,13.19569341]
[1734099021450,0.5345105,223.72,223.71,13.19569341]
[1734099021757,13.73020391,223.72,223.67,2.4032]
[1734099021944,13.19569341,223.71,223.67,2.4032]
[1734099022138,0.5345105,223.72,223.67,2.4032]
[1734099022745,13.19569341,223.68,223.61,15.66589341]
[1734099022931,13.19569341,223.65,223.61,2.4702]
[1734099023238,13.19569341,223.62,223.56,2.4212]
[1734099023667,13.19569341,223.61,223.56,2.4212]
[1734099023885,11.177,223.68,223.56,2.4212]
[1734099023886,13.19569341,223.59,223.56,2.4212]
[1734099024061,0.12549,223.67,223.5,15.61689341]
[1734099024062,13.19569341,223.57,223.5,15.61689341]
[1734099024240,13.19569341,223.57,223.5,2.4212]
[1734099024436,13.19569341,223.56,223.5,2.4212]
[1734099024955,13.19569341,223.55,223.5,2.4212]
[1734099025255,13.19569341,223.52,223.45,15.59939341]
[1734099025552,10.18477941,223.51,223.45,2.4037]
[1734099026996,13.19569341,223.52,223.45,2.4037]
[1734099027461,13.19569341,223.52,223.45,15.59939341]
[1734099029995,13.19569341,223.49,223.42,19.74389341]
[1734099030240,13.19569341,223.52,223.46,13.19569341]
[1734099030357,13.19569341,223.54,223.47,13.19569341]
[1734099030766,13.19569341,223.53,223.46,13.19569341]
[1734099031148,13.19569341,223.54,223.47,13.19569341]
[1734099031355,13.19569341,223.58,223.51,13.19569341]
[1734099031653,13.19569341,223.58,223.44,0.12549]
[1734099031654,13.19569341,223.61,223.54,13.19569341]
[1734099032270,13.19569341,223.6,223.53,13.19569341]
[1734099032479,13.19569341,223.62,223.55,13.19569341]
[1734099032665,13.19569341,223.64,223.57,13.19569341]
[1734099033972,13.19569341,223.62,223.55,13.19569341]
[1734099034351,13.19569341,223.64,223.57,13.19569341]
[1734099034552,13.19569341,223.65,223.58,13.19569341]
[1734099034758,13.19569341,223.63,223.56,13.19569341]
[1734099035057,13.19569341,223.61,223.54,13.19569341]
[1734099035255,13.19569341,223.62,223.55,13.19569341]
[1734099035456,13.19569341,223.64,223.57,13.19569341]
[1734099035675,13.19569341,223.62,223.56,13.19569341]
[1734099036075,13.19569341,223.63,223.56,13.19569341]
[1734099036399,13.19569341,223.64,223.57,13.19569341]
[1734099036674,13.19569341,223.64,223.53,7.01870011]
[1734099036675,13.19569341,223.65,223.59,13.19569341]
[1734099036860,13.19569341,223.64,223.57,13.19569341]
[1734099037869,13.19569341,223.63,223.56,13.19569341]
[1734099038459,13.19569341,223.64,223.56,13.19569341]
[1734099039784,13.19569341,223.62,223.55,15.47669341]
[1734099041280,13.19569341,223.61,223.55,2.281]
[1734099041576,13.19569341,223.62,223.55,15.47669341]
[1734099042574,34.953184,223.69,223.55,15.47669341]
[1734099042575,13.19569341,223.64,223.56,13.19569341]
[1734099042997,13.19569341,223.7,223.63,13.19569341]
[1734099043115,13.73020391,223.72,223.64,13.19569341]
[1734099043282,13.19569341,223.68,223.58,20.67064757]
[1734099043482,0.5345105,223.72,223.58,20.67064757]
[1734099043667,0.5345105,223.72,223.56,0.67075116]
[1734099043980,0.12549,223.7,223.55,2.281]
[1734099044164,20.0,223.68,223.55,2.281]
[1734099044358,13.19569341,223.59,223.55,2.281]
[1734099045993,23.776884,223.65,223.55,2.281]
[1734099045994,13.19569341,223.6,223.55,2.281]
[1734099046364,13.19569341,223.63,223.56,13.19569341]
[1734099046564,13.19569341,223.64,223.57,13.19569341]
[1734099047563,13.19569341,223.64,223.56,13.19569341]
[1734099047763,13.19569341,223.63,223.56,13.19569341]
[1734099050508,13.19569341,223.59,223.55,2.281]
[1734099050705,13.19569341,223.58,223.55,2.281]
[1734099050912,13.19569341,223.59,223.55,2.281]
[1734099051571,13.19569341,223.6,223.55,2.281]
[1734099051768,13.19569341,223.58,223.55,2.281]
[1734099051969,13.19569341,223.57,223.5,15.66529341]
[1734099052168,13.19569341,223.56,223.5,2.4696]
[1734099052458,13.19569341,223.55,223.5,2.4696]
[1734099053001,13.19569341,223.56,223.5,2.4696]
[1734099053298,13.19569341,223.57,223.5,15.66529341]
[1734099053604,20.0,223.6,223.52,13.19569341]
[1734099053767,33.19569341,223.6,223.53,13.19569341]
[1734099054106,20.0,223.6,223.54,13.19569341]
[1734099054688,13.19569341,223.61,223.54,13.19569341]
[1734099055004,23.776884,223.65,223.5,3.14066092]
[1734099055005,13.19569341,223.62,223.55,13.19569341]
[1734099055231,13.19569341,223.65,223.58,13.19569341]
[1734099055974,13.19569341,223.64,223.57,13.19569341]
[1734099056209,13.19569341,223.63,223.56,13.19569341]
[1734099056373,13.19569341,223.62,223.56,13.19569341]
[1734099056803,13.19569341,223.63,223.56,13.19569341]
[1734099057914,13.19569341,223.6,223.51,0.67087923]
[1734099058129,13.19569341,223.6,223.51,20.67098871]
[1734099058276,13.19569341,223.6,223.53,13.19569341]
[1734099058814,13.19569341,223.6,223.51,0.67098871]
[1734099058978,13.19569341,223.61,223.54,13.19569341]
[1734099059909,13.19569341,223.59,223.53,13.19569341]
[1734099060115,13.19569341,223.56,223.5,2.4696]
[1734099060298,13.19569341,223.56,223.5,15.66529341]
[1734099060607,13.19569341,223.57,223.51,13.19569341]
[1734099060790,11.1791,223.64,223.54,13.19569341]
[1734099060791,13.19569341,223.61,223.54,13.19569341]
[1734099060974,13.19569341,223.62,223.55,13.19569341]
[1734099061223,13.19569341,223.61,223.54,13.19569341]
[1734099062980,13.19569341,223.6,223.53,13.19569341]
[1734099064831,13.19569341,223.61,223.54,13.19569341]
[1734099065047,13.19569341,223.64,223.56,13.19569341]
[1734099065312,13.19569341,223.64,223.57,13.19569341]
[1734099065495,13.19569341,223.64,223.56,13.19569341]
[1734099065684,13.19569341,223.63,223.56,13.19569341]
[1734099065990,13.19569341,223.64,223.57,13.19569341]
[1734099066180,13.19569341,223.65,223.58,13.19569341]
[1734099066382,13.19569341,223.63,223.56,13.19569341]
[1734099067303,13.19569341,223.6,223.53,13.19569341]
[1734099067491,13.19569341,223.61,223.53,13.19569341]
[1734099067588,13.19569341,223.62,223.55,13.19569341]
[1734099068218,82.1345105,223.72,223.61,15.49129341]
[1734099068219,0.5345105,223.72,223.61,15.49129341]
[1734099068407,13.19569341,223.7,223.63,13.19569341]
[1734099068599,13.19569341,223.71,223.64,13.19569341]
[1734099068825,13.73020391,223.72,223.64,13.19569341]
[1734099069288,13.19569341,223.69,223.62,13.19569341]
[1734099069490,13.19569341,223.68,223.61,15.49129341]
[1734099069692,13.19569341,223.66,223.61,2.2956]
[1734099069883,13.19569341,223.67,223.61,2.2956]
[1734099070908,13.19569341,223.66,223.61,2.2956]
[1734099071304,13.19569341,223.65,223.61,2.2956]
[1734099071696,13.19569341,223.63,223.61,2.2956]
[1734099071902,13.19569341,223.62,223.56,2.4673]
[1734099072195,13.19569341,223.6,223.56,2.4673]
[1734099072425,13.19569341,223.59,223.56,2.4673]
[1734099073603,13.19569341,223.57,223.51,2.4673]
[1734099073800,13.19569341,223.56,223.51,2.4673]
[1734099073998,13.19569341,223.55,223.51,2.4673]
[1734099074220,13.19569341,223.53,223.51,2.4673]
[1734099074727,13.19569341,223.52,223.46,2.3821]
[1734099074896,13.19569341,223.5,223.46,2.3821]
[1734099075096,13.19569341,223.51,223.46,2.3821]
[1734099075638,13.19569341,223.5,223.46,2.3821]
[1734099075925,11.1818,223.58,223.46,2.3821]
[1734099075926,13.19569341,223.49,223.46,2.3821]
[1734099077034,13.19569341,223.52,223.46,2.3821]
[1734099077320,13.19569341,223.51,223.46,2.3821]
[1734099077519,13.19569341,223.5,223.46,2.3821]
[1734099078810,13.19569341,223.49,223.46,2.3821]
[1734099080629,13.19569341,223.47,223.41,2.4488]
[1734099080802,13.19569341,223.44,223.41,2.4488]
[1734099081006,13.19569341,223.48,223.41,15.64449341]
[1734099081803,13.19569341,223.49,223.42,13.19569341]
[1734099082209,13.19569341,223.55,223.47,13.19569341]
[1734099082409,13.19569341,223.55,223.48,13.19569341]
[1734099082711,13.19569341,223.57,223.5,13.19569341]
[1734099082978,13.19569341,223.56,223.49,13.19569341]
[1734099083244,13.19569341,223.55,223.48,13.19569341]
[1734099083403,13.19569341,223.53,223.46,13.19569341]
[1734099083602,13.19569341,223.5,223.43,13.19569341]
[1734099083917,13.19569341,223.53,223.46,13.19569341]
[1734099084119,34.49879504,223.67,223.51,13.19569341]
[1734099084120,15.58957684,223.65,223.51,13.19569341]
[1734099084348,15.58957684,223.65,223.47,0.67111037]
[1734099084523,13.19569341,223.54,223.47,13.19569341]
[1734099084902,13.19569341,223.56,223.49,13.19569341]
[1734099085227,13.19569341,223.58,223.51,13.19569341]
[1734099085446,13.19569341,223.56,223.49,13.19569341]
[1734099085934,13.19569341,223.57,223.5,13.19569341]
[1734099086929,13.19569341,223.58,223.51,13.19569341]
[1734099087534,13.19569341,223.54,223.5,2.5004]
[1734099087714,13.19569341,223.52,223.45,13.19569341]
[1734099087932,13.19569341,223.52,223.44,21.86219341]
[1734099088134,13.19569341,223.53,223.46,13.19569341]
[1734099088709,13.19569341,223.51,223.44,15.62969341]
[1734099089037,13.19569341,223.49,223.44,2.434]
[1734099089409,0.12549,223.57,223.44,2.434]
[1734099089410,13.19569341,223.51,223.44,15.62969341]
[1734099091738,13.19569341,223.48,223.44,2.434]
[1734099091924,13.19569341,223.47,223.44,2.434]
[1734099092126,13.19569341,223.48,223.44,2.434]
[1734099092505,13.19569341,223.49,223.44,2.434]
[1734099093236,13.19569341,223.48,223.44,2.434]
[1734099093815,13.19569341,223.47,223.44,2.434]
[1734099094044,13.19569341,223.46,223.39,19.41259341]
[1734099094339,13.19569341,223.45,223.39,6.2169]
[1734099095523,13.19569341,223.46,223.39,19.41259341]
[1734099095741,13.19569341,223.47,223.4,13.19569341]
[1734099096330,13.19569341,223.46,223.39,19.41259341]
[1734099097620,13.19569341,223.45,223.39,6.2169]
[1734099098324,13.19569341,223.46,223.39,19.41259341]
[1734099101344,13.19569341,223.45,223.39,6.2169]
[1734099104040,13.19569341,223.46,223.39,19.41259341]
[1734099104241,13.19569341,223.5,223.43,13.19569341]
[1734099104542,13.19569341,223.51,223.44,13.19569341]
[1734099104730,11.1826,223.56,223.44,13.19569341]
[1734099105044,13.19569341,223.55,223.47,13.19569341]
[1734099105628,6.06528032,223.59,223.48,2.4357]
[1734099105828,13.19569341,223.55,223.48,15.63139341]
[1734099106339,13.19569341,223.56,223.48,15.63139341]
[1734099106527,13.19569341,223.55,223.48,15.63139341]
[1734099107245,13.19569341,223.57,223.5,13.19569341]
[1734099107623,13.19569341,223.58,223.5,13.19569341]
[1734099108643,13.19569341,223.56,223.49,6.373]
[1734099108833,13.19569341,223.55,223.49,6.373]
[1734099109030,13.19569341,223.56,223.49,6.373]
[1734099109230,13.19569341,223.57,223.5,13.19569341]
[1734099109436,13.19569341,223.56,223.49,19.56869341]
[1734099109747,13.19569341,223.56,223.49,6.373]
[1734099111551,13.19569341,223.55,223.49,6.373]
[1734099112348,13.19569341,223.54,223.49,6.373]
[1734099112536,13.19569341,223.51,223.48,2.4357]
[1734099113653,13.19569341,223.49,223.43,2.396]
[1734099113849,13.19569341,223.46,223.43,2.396]
[1734099114043,13.19569341,223.45,223.43,2.396]
[1734099114254,13.19569341,223.45,223.39,6.5347]
[1734099114560,13.19569341,223.44,223.39,6.5347]
[1734099114788,13.19569341,223.45,223.39,6.5347]
[1734099115754,13.19569341,223.46,223.39,19.73039341]
[1734099115963,13.19569341,223.48,223.41,13.19569341]
[1734099116135,20.0,223.49,223.43,13.19569341]
[1734099116327,13.19569341,223.51,223.45,13.19569341]
[1734099116733,13.19569341,223.53,223.46,13.19569341]
[1734099117169,13.19569341,223.53,223.47,13.19569341]
[1734099117349,13.19569341,223.54,223.47,13.19569341]
[1734099118094,6.06528032,223.58,223.47,13.19569341]
[1734099118095,13.19569341,223.53,223.47,13.19569341]
[1734099118362,13.19569341,223.55,223.49,13.19569341]
[1734099118656,13.19569341,223.57,223.5,13.19569341]
[1734099118865,13.19569341,223.56,223.49,13.19569341]
[1734099119359,11.1809,223.6,223.53,13.19569341]
[1734099119360,13.19569341,223.6,223.53,13.19569341]
[1734099119541,13.19569341,223.6,223.54,13.19569341]
[1734099121341,13.19569341,223.62,223.56,13.19569341]
[1734099121689,13.19569341,223.65,223.58,2.3714]
[1734099121872,13.19569341,223.66,223.59,13.19569341]
[1734099122169,13.19569341,223.68,223.61,13.19569341]
[1734099122345,13.19569341,223.69,223.62,13.19569341]
[1734099122966,13.19569341,223.69,223.62,19.71109341]
[1734099123495,13.19569341,223.69,223.59,13.19569341]
[1734099123496,13.19569341,223.66,223.59,13.19569341]
[1734099124272,13.19569341,223.68,223.61,13.19569341]